[Event "*** SCC Grand Prix: Titled Tuesday Blitz"]
[Site "Chess.com"]
[Date "2020.10.13"]
[Round "2"]
[White "DenLaz"]
[Black "KarstenHansch"]
[Result "0-1"]
[WhiteElo "2805"]
[BlackElo "2491"]
[TimeControl "180+1"]
[EndTime "10:18:18 PDT"]
[Termination "KarstenHansch won by resignation"]

1. d4 {[%clk 0:02:54.3]} 1... d5 {[%clk 0:03:00]} 2. c4 {[%clk 0:02:49.5]} 2...
e6 {[%clk 0:03:00]} 3. Nf3 {[%clk 0:02:48.6]} 3... Nf6 {[%clk 0:02:59.8]} 4. Nc3
{[%clk 0:02:47.7]} 4... Be7 {[%clk 0:02:59.8]} 5. Bg5 {[%clk 0:02:45.6]} 5...
Nbd7 {[%clk 0:02:59.3]} 6. cxd5 {[%clk 0:02:44.9]} 6... exd5 {[%clk 0:02:56.6]}
7. e3 {[%clk 0:02:44.8]} 7... c6 {[%clk 0:02:57.1]} 8. Bd3 {[%clk 0:02:44.7]}
8... h6 {[%clk 0:02:57.3]} 9. Bh4 {[%clk 0:02:41.2]} 9... Nh5 {[%clk 0:02:57.4]}
10. Bxe7 {[%clk 0:02:40.7]} 10... Qxe7 {[%clk 0:02:58.3]} 11. Qc2 {[%clk
0:02:41]} 11... Nb6 {[%clk 0:02:56.5]} 12. O-O-O {[%clk 0:02:39.9]} 12... Bg4
{[%clk 0:02:56.3]} 13. Kb1 {[%clk 0:02:37.4]} 13... Nf6 {[%clk 0:02:56.2]} 14.
Rc1 {[%clk 0:02:37.1]} 14... Nfd7 {[%clk 0:02:54.7]} 15. Nd2 {[%clk 0:02:35]}
15... O-O-O {[%clk 0:02:54.5]} 16. Na4 {[%clk 0:02:32.6]} 16... Nxa4 {[%clk
0:02:47.5]} 17. Qxa4 {[%clk 0:02:33.5]} 17... Kb8 {[%clk 0:02:47.8]} 18. Nb3
{[%clk 0:02:32.3]} 18... Nb6 {[%clk 0:02:30.6]} 19. Qa5 {[%clk 0:02:32.1]} 19...
Qf6 {[%clk 0:02:24]} 20. Rc2 {[%clk 0:02:13]} 20... Bf5 {[%clk 0:02:23.6]} 21.
Rd1 {[%clk 0:02:08.7]} 21... Bxd3 {[%clk 0:02:19.3]} 22. Rxd3 {[%clk 0:02:09.6]}
22... Qg6 {[%clk 0:02:19.7]} 23. Nc5 {[%clk 0:02:05.9]} 23... Qxg2 {[%clk
0:02:14.9]} 24. Rb3 {[%clk 0:02:03.6]} 24... Rde8 {[%clk 0:00:47.4]} 25. Rxb6
{[%clk 0:01:43.6]} 25... axb6 {[%clk 0:00:47.5]} 26. Qxb6 {[%clk 0:01:44.5]}
26... Re7 {[%clk 0:00:46.9]} 27. a4 {[%clk 0:01:14.4]} 27... Qxh2 {[%clk
0:00:36]} 28. a5 {[%clk 0:01:10]} 28... Kc8 {[%clk 0:00:28.5]} 29. a6 {[%clk
0:01:08]} 29... Qb8 {[%clk 0:00:13.3]} 30. axb7+ {[%clk 0:00:53]} 30... Rxb7
{[%clk 0:00:13.3]} 31. Nxb7 {[%clk 0:00:44.9]} 31... Qxb7 {[%clk 0:00:14.2]} 32.
Rxc6+ {[%clk 0:00:45]} 32... Kb8 {[%clk 0:00:14.5]} 33. Qc5 {[%clk 0:00:40.6]}
33... Rc8 {[%clk 0:00:13.4]} 34. Qd6+ {[%clk 0:00:30.4]} 34... Ka7 {[%clk
0:00:12.5]} 35. Rc5 {[%clk 0:00:30.5]} 35... Rxc5 {[%clk 0:00:12.2]} 36. dxc5
{[%clk 0:00:31.4]} 36... Qb3 {[%clk 0:00:11.8]} 37. Qd7+ {[%clk 0:00:17.3]}
37... Ka6 {[%clk 0:00:11.3]} 38. Qc6+ {[%clk 0:00:17.2]} 38... Ka7 {[%clk
0:00:11.3]} 39. Kc1 {[%clk 0:00:11.3]} 39... Qc4+ {[%clk 0:00:10.4]} 40. Kd2
{[%clk 0:00:11.8]} 40... Qb4+ {[%clk 0:00:10.8]} 41. Ke2 {[%clk 0:00:12.4]}
41... Qxb2+ {[%clk 0:00:10.9]} 42. Kf1 {[%clk 0:00:11.9]} 42... Qb1+ {[%clk
0:00:11.4]} 43. Ke2 {[%clk 0:00:09.4]} 43... Qc2+ {[%clk 0:00:11.5]} 44. Kf3
{[%clk 0:00:09.2]} 44... Qe4+ {[%clk 0:00:11.4]} 45. Ke2 {[%clk 0:00:09.5]}
45... Qc2+ {[%clk 0:00:11.7]} 46. Kf3 {[%clk 0:00:09.5]} 46... Qe4+ {[%clk
0:00:11]} 47. Kg3 {[%clk 0:00:10]} 47... Qg6+ {[%clk 0:00:10.8]} 48. Qxg6 {[%clk
0:00:09.8]} 48... fxg6 {[%clk 0:00:11.7]} 49. Kf4 {[%clk 0:00:10.7]} 49... Kb7
{[%clk 0:00:11.8]} 50. Ke5 {[%clk 0:00:11]} 50... Kc6 {[%clk 0:00:12.2]} 51. Kd4
{[%clk 0:00:09.1]} 51... h5 {[%clk 0:00:12.3]} 52. Ke5 {[%clk 0:00:09.5]} 52...
Kxc5 {[%clk 0:00:11.9]} 53. Kf4 {[%clk 0:00:10.4]} 53... Kd6 {[%clk 0:00:11.9]}
54. Kg5 {[%clk 0:00:10.7]} 54... Ke5 {[%clk 0:00:12.5]} 55. f4+ {[%clk
0:00:11.1]} 55... Ke4 {[%clk 0:00:12.9]} 56. Kxg6 {[%clk 0:00:10.7]} 56... h4
{[%clk 0:00:12.8]} 57. Kxg7 {[%clk 0:00:11.6]} 57... h3 {[%clk 0:00:13.2]} 58.
f5 {[%clk 0:00:12.5]} 58... h2 {[%clk 0:00:13.7]} 59. f6 {[%clk 0:00:13.4]}
59... h1=Q {[%clk 0:00:14.3]} 60. f7 {[%clk 0:00:14.3]} 60... Qg2+ {[%clk
0:00:14.5]} 61. Kf8 {[%clk 0:00:14.8]} 61... Kxe3 {[%clk 0:00:14.5]} 62. Ke7
{[%clk 0:00:15.7]} 62... Qe4+ {[%clk 0:00:14.8]} 63. Kd6 {[%clk 0:00:16.4]}
63... Qf5 {[%clk 0:00:14.8]} 64. Kc5 {[%clk 0:00:17.3]} 64... Qxf7 {[%clk
0:00:14.9]} 0-1

[Event "*** SCC Grand Prix: Titled Tuesday Blitz"]
[Site "Chess.com"]
[Date "2020.10.13"]
[Round "2"]
[White "tylityli"]
[Black "Piotrek1979"]
[Result "0-1"]
[WhiteElo "2195"]
[BlackElo "2421"]
[TimeControl "180+1"]
[EndTime "10:18:19 PDT"]
[Termination "Piotrek1979 won on time"]

1. d4 {[%clk 0:03:00.9]} 1... d6 {[%clk 0:02:57.2]} 2. Nf3 {[%clk 0:02:59.6]}
2... Bg4 {[%clk 0:02:53.6]} 3. g3 {[%clk 0:02:58]} 3... e6 {[%clk 0:02:53.9]} 4.
Bg2 {[%clk 0:02:58]} 4... Nf6 {[%clk 0:02:51.6]} 5. O-O {[%clk 0:02:58]} 5... c6
{[%clk 0:02:45.2]} 6. c4 {[%clk 0:02:56.5]} 6... Nbd7 {[%clk 0:02:44.5]} 7. Nc3
{[%clk 0:02:55.6]} 7... d5 {[%clk 0:02:41.1]} 8. c5 {[%clk 0:02:52]} 8... b6
{[%clk 0:02:33.1]} 9. b4 {[%clk 0:02:48.5]} 9... a5 {[%clk 0:02:31.6]} 10. b5
{[%clk 0:02:33.2]} 10... bxc5 {[%clk 0:02:27.3]} 11. bxc6 {[%clk 0:02:32.9]}
11... Nb6 {[%clk 0:02:16.5]} 12. Ne5 {[%clk 0:02:17.2]} 12... Bd6 {[%clk
0:02:08.8]} 13. Nxg4 {[%clk 0:02:08]} 13... Nxg4 {[%clk 0:02:07.6]} 14. dxc5
{[%clk 0:02:06.5]} 14... Bxc5 {[%clk 0:02:06.6]} 15. Na4 {[%clk 0:02:02.1]}
15... Qd6 {[%clk 0:01:02.5]} 16. e4 {[%clk 0:01:44.8]} 16... Nxa4 {[%clk
0:00:36.4]} 17. Qxg4 {[%clk 0:01:34.3]} 17... Bd4 {[%clk 0:00:31.5]} 18. Rb1
{[%clk 0:01:15.4]} 18... h5 {[%clk 0:00:31.2]} 19. Qd1 {[%clk 0:01:05.1]} 19...
Nc3 {[%clk 0:00:30.9]} 20. Qxd4 {[%clk 0:01:04.9]} 20... Ne2+ {[%clk 0:00:30.7]}
21. Kh1 {[%clk 0:01:03.9]} 21... Nxd4 {[%clk 0:00:31.6]} 22. exd5 {[%clk
0:01:02.3]} 22... O-O {[%clk 0:00:30.8]} 23. Bf4 {[%clk 0:00:59.8]} 23... e5
{[%clk 0:00:28]} 24. Be3 {[%clk 0:00:59.2]} 24... Rab8 {[%clk 0:00:28.5]} 25.
Rbd1 {[%clk 0:00:53.6]} 25... Rb4 {[%clk 0:00:28.4]} 26. a3 {[%clk 0:00:52.2]}
26... Rc4 {[%clk 0:00:27.7]} 27. Rfe1 {[%clk 0:00:50.2]} 27... Nc2 {[%clk
0:00:26.8]} 28. Re2 {[%clk 0:00:49.3]} 28... Nxe3 {[%clk 0:00:27.4]} 29. Rxe3
{[%clk 0:00:46.8]} 29... Rb8 {[%clk 0:00:25.9]} 30. Rde1 {[%clk 0:00:45.9]}
30... f6 {[%clk 0:00:20.4]} 31. h4 {[%clk 0:00:44.6]} 31... Rd4 {[%clk
0:00:20.4]} 32. Rc3 {[%clk 0:00:43.1]} 32... Rb2 {[%clk 0:00:20.7]} 33. c7
{[%clk 0:00:41.3]} 33... Rb8 {[%clk 0:00:15.3]} 34. cxb8=Q+ {[%clk 0:00:32.4]}
34... Qxb8 {[%clk 0:00:16.2]} 35. Rec1 {[%clk 0:00:32.7]} 35... Kh7 {[%clk
0:00:16.5]} 36. R1c2 {[%clk 0:00:27.7]} 36... Qb1+ {[%clk 0:00:16]} 37. Kh2
{[%clk 0:00:27.2]} 37... Qd1 {[%clk 0:00:16.2]} 38. Rc5 {[%clk 0:00:19]} 38...
e4 {[%clk 0:00:15.4]} 39. R5c3 {[%clk 0:00:15.7]} 39... f5 {[%clk 0:00:14.4]}
40. Rb2 {[%clk 0:00:12.8]} 40... Rxd5 {[%clk 0:00:14]} 41. Rcb3 {[%clk
0:00:11.1]} 41... Rd2 {[%clk 0:00:13.7]} 42. Rb1 {[%clk 0:00:10.5]} 42... Qe2
{[%clk 0:00:13.4]} 43. Rf1 {[%clk 0:00:08.3]} 43... Qc4 {[%clk 0:00:10.5]} 44.
Re3 {[%clk 0:00:06.6]} 44... Qc5 {[%clk 0:00:08.6]} 45. Kg1 {[%clk 0:00:06.5]}
45... g6 {[%clk 0:00:07.1]} 46. Bh3 {[%clk 0:00:06]} 46... Qd4 {[%clk
0:00:06.3]} 47. Bg2 {[%clk 0:00:05.9]} 47... Rd3 {[%clk 0:00:06.5]} 48. Rfe1
{[%clk 0:00:02.3]} 48... Qc5 {[%clk 0:00:04]} 49. Kh2 {[%clk 0:00:01]} 49...
Qxa3 {[%clk 0:00:03.1]} 0-1

[Event "*** SCC Grand Prix: Titled Tuesday Blitz"]
[Site "Chess.com"]
[Date "2020.10.13"]
[Round "2"]
[White "A-S-00"]
[Black "Gerodot71"]
[Result "0-1"]
[WhiteElo "2243"]
[BlackElo "2461"]
[TimeControl "180+1"]
[EndTime "10:18:20 PDT"]
[Termination "Gerodot71 won by resignation"]

1. d4 {[%clk 0:03:00]} 1... Nf6 {[%clk 0:03:00.5]} 2. c4 {[%clk 0:02:59.1]} 2...
e6 {[%clk 0:03:00.8]} 3. g3 {[%clk 0:02:59.2]} 3... d5 {[%clk 0:03:00.9]} 4. Bg2
{[%clk 0:02:59.1]} 4... Be7 {[%clk 0:03:01.4]} 5. Nf3 {[%clk 0:02:59.3]} 5...
O-O {[%clk 0:03:02]} 6. O-O {[%clk 0:02:59.4]} 6... dxc4 {[%clk 0:03:02.6]} 7.
Qc2 {[%clk 0:02:58]} 7... a6 {[%clk 0:03:03]} 8. a4 {[%clk 0:02:58.2]} 8... Nc6
{[%clk 0:03:02.3]} 9. Qxc4 {[%clk 0:02:57.9]} 9... Qd5 {[%clk 0:03:01.9]} 10.
Nbd2 {[%clk 0:02:51.2]} 10... Rd8 {[%clk 0:02:50.9]} 11. e3 {[%clk 0:02:45]}
11... Qh5 {[%clk 0:02:46.8]} 12. Qc2 {[%clk 0:02:32.9]} 12... e5 {[%clk
0:02:31.3]} 13. dxe5 {[%clk 0:02:28.6]} 13... Ng4 {[%clk 0:02:31]} 14. h3 {[%clk
0:01:57.8]} 14... Ngxe5 {[%clk 0:02:29.1]} 15. Nxe5 {[%clk 0:01:56.2]} 15...
Qxe5 {[%clk 0:02:25.4]} 16. Nc4 {[%clk 0:01:50.2]} 16... Qh5 {[%clk 0:02:18.4]}
17. g4 {[%clk 0:01:46.8]} 17... Qg6 {[%clk 0:01:53.4]} 18. Be4 {[%clk
0:01:38.2]} 18... Qh6 {[%clk 0:01:49.7]} 19. Kg2 {[%clk 0:01:37.8]} 19... Be6
{[%clk 0:01:37.9]} 20. b3 {[%clk 0:00:56.9]} 20... Nb4 {[%clk 0:01:23.4]} 21.
Qe2 {[%clk 0:00:55.9]} 21... Bf6 {[%clk 0:01:03.2]} 22. Rb1 {[%clk 0:00:54.8]}
22... Bd5 {[%clk 0:00:50.8]} 23. Bxd5 {[%clk 0:00:45.3]} 23... Nxd5 {[%clk
0:00:51.7]} 24. Bb2 {[%clk 0:00:42]} 24... Nc3 {[%clk 0:00:48.3]} 25. Bxc3
{[%clk 0:00:41.5]} 25... Bxc3 {[%clk 0:00:49.2]} 26. Rbd1 {[%clk 0:00:39.9]}
26... b5 {[%clk 0:00:41.5]} 27. Na3 {[%clk 0:00:25.9]} 27... Qc6+ {[%clk
0:00:33.4]} 28. e4 {[%clk 0:00:24.9]} 28... bxa4 {[%clk 0:00:31.4]} 29. bxa4
{[%clk 0:00:24.8]} 29... Qxa4 {[%clk 0:00:31.8]} 30. Nc4 {[%clk 0:00:24.9]}
30... h6 {[%clk 0:00:28.2]} 31. Rc1 {[%clk 0:00:20.6]} 31... Bf6 {[%clk
0:00:27.4]} 32. Rfd1 {[%clk 0:00:20.1]} 32... a5 {[%clk 0:00:25.1]} 33. e5
{[%clk 0:00:20.2]} 33... Be7 {[%clk 0:00:24.6]} 34. Ne3 {[%clk 0:00:19.5]} 34...
Qe4+ {[%clk 0:00:23.3]} 35. f3 {[%clk 0:00:18.8]} 35... Qxe5 {[%clk 0:00:23.7]}
36. Qf2 {[%clk 0:00:16.8]} 36... Bg5 {[%clk 0:00:22.4]} 37. Nc4 {[%clk
0:00:15.8]} 37... Qe6 {[%clk 0:00:19.6]} 38. Re1 {[%clk 0:00:15.3]} 38... Qg6
{[%clk 0:00:18.2]} 39. f4 {[%clk 0:00:15]} 39... Bf6 {[%clk 0:00:17.9]} 40. Ne5
{[%clk 0:00:14.3]} 40... Bxe5 {[%clk 0:00:17.7]} 41. Rxe5 {[%clk 0:00:14.1]}
41... a4 {[%clk 0:00:17.1]} 42. Rxc7 {[%clk 0:00:13.4]} 42... a3 {[%clk
0:00:17.2]} 43. Qa2 {[%clk 0:00:13.2]} 43... Qf6 {[%clk 0:00:15.8]} 44. Rf5
{[%clk 0:00:12.6]} 44... Qb2+ {[%clk 0:00:14.5]} 45. Rc2 {[%clk 0:00:12.1]}
45... Qxa2 {[%clk 0:00:12.4]} 46. Rxa2 {[%clk 0:00:12.1]} 46... g6 {[%clk
0:00:11.6]} 47. Rc5 {[%clk 0:00:12]} 47... Rd3 {[%clk 0:00:11.3]} 48. Rcc2
{[%clk 0:00:09.8]} 48... Rb3 {[%clk 0:00:10.2]} 49. h4 {[%clk 0:00:07.3]} 49...
Rab8 {[%clk 0:00:09.8]} 50. Kf2 {[%clk 0:00:04.3]} 50... Rb2 {[%clk 0:00:09.2]}
51. Ke1 {[%clk 0:00:04.5]} 51... Rxc2 {[%clk 0:00:08]} 52. Rxc2 {[%clk
0:00:04.1]} 52... Rb2 {[%clk 0:00:08.9]} 53. Kd2 {[%clk 0:00:03.2]} 53... a2
{[%clk 0:00:08.4]} 54. Rxb2 {[%clk 0:00:03.2]} 54... a1=Q {[%clk 0:00:09]} 0-1

[Event "*** SCC Grand Prix: Titled Tuesday Blitz"]
[Site "Chess.com"]
[Date "2020.10.13"]
[Round "2"]
[White "Cocaino74"]
[Black "pfalcon1949"]
[Result "1-0"]
[WhiteElo "2363"]
[BlackElo "1942"]
[TimeControl "180+1"]
[EndTime "10:18:23 PDT"]
[Termination "Cocaino74 won by checkmate"]

1. e4 {[%clk 0:03:00.9]} 1... c6 {[%clk 0:02:59.5]} 2. d4 {[%clk 0:03:00.1]}
2... d5 {[%clk 0:02:59.6]} 3. exd5 {[%clk 0:03:01]} 3... cxd5 {[%clk 0:02:58.2]}
4. Bd3 {[%clk 0:03:01.7]} 4... Nc6 {[%clk 0:02:56]} 5. c3 {[%clk 0:03:02.3]}
5... Nf6 {[%clk 0:02:55.6]} 6. Bf4 {[%clk 0:03:02.6]} 6... Bg4 {[%clk
0:02:55.2]} 7. Qb3 {[%clk 0:03:03.1]} 7... Qd7 {[%clk 0:02:52.7]} 8. Nd2 {[%clk
0:03:02.6]} 8... e6 {[%clk 0:02:49.5]} 9. h3 {[%clk 0:03:02.4]} 9... Bh5 {[%clk
0:02:47]} 10. Ngf3 {[%clk 0:03:03]} 10... Bd6 {[%clk 0:02:46.7]} 11. Bxd6 {[%clk
0:03:02.8]} 11... Qxd6 {[%clk 0:02:46.9]} 12. Qxb7 {[%clk 0:03:02.7]} 12... O-O
{[%clk 0:02:46]} 13. Qa6 {[%clk 0:03:02.7]} 13... Rab8 {[%clk 0:02:45.2]} 14.
Qa3 {[%clk 0:02:44.4]} 14... Qxa3 {[%clk 0:02:30.5]} 15. bxa3 {[%clk 0:02:45.3]}
15... Rb2 {[%clk 0:02:30.2]} 16. O-O {[%clk 0:02:42.6]} 16... Rfb8 {[%clk
0:02:30.5]} 17. Rfb1 {[%clk 0:02:40.9]} 17... Bxf3 {[%clk 0:02:12.2]} 18. Nxf3
{[%clk 0:02:41.8]} 18... Ne4 {[%clk 0:02:12.4]} 19. Rxb2 {[%clk 0:02:22.9]}
19... Rxb2 {[%clk 0:02:10.1]} 20. Bxe4 {[%clk 0:02:23.5]} 20... dxe4 {[%clk
0:02:09.4]} 21. Ng5 {[%clk 0:02:24.2]} 21... Na5 {[%clk 0:01:54.9]} 22. Nxe4
{[%clk 0:02:17.6]} 22... Nc4 {[%clk 0:01:55.4]} 23. a4 {[%clk 0:02:11.4]} 23...
Kf8 {[%clk 0:01:54]} 24. a5 {[%clk 0:01:29.2]} 24... Nxa5 {[%clk 0:01:48.2]} 25.
a4 {[%clk 0:01:27.5]} 25... Nc4 {[%clk 0:01:46.3]} 26. a5 {[%clk 0:01:25.3]}
26... Ke7 {[%clk 0:01:34.9]} 27. Ra4 {[%clk 0:01:19.6]} 27... Nd2 {[%clk
0:01:13.6]} 28. Nxd2 {[%clk 0:01:15.3]} 28... Rxd2 {[%clk 0:01:13.3]} 29. Rb4
{[%clk 0:01:13.7]} 29... Rc2 {[%clk 0:01:10.9]} 30. Rb7+ {[%clk 0:01:02.9]}
30... Kf6 {[%clk 0:01:10.6]} 31. Rc7 {[%clk 0:00:57.9]} 31... a6 {[%clk
0:01:10.6]} 32. c4 {[%clk 0:00:36.5]} 32... Ra2 {[%clk 0:01:07.3]} 33. Rc5
{[%clk 0:00:32.2]} 33... Ra4 {[%clk 0:01:06.5]} 34. g4 {[%clk 0:00:25.6]} 34...
h6 {[%clk 0:01:00.7]} 35. Kg2 {[%clk 0:00:25.3]} 35... Ra3 {[%clk 0:00:59.1]}
36. f3 {[%clk 0:00:20.5]} 36... g5 {[%clk 0:00:56.8]} 37. h4 {[%clk 0:00:19.9]}
37... gxh4 {[%clk 0:00:48.1]} 38. d5 {[%clk 0:00:09.3]} 38... h3+ {[%clk
0:00:46.8]} 39. Kg3 {[%clk 0:00:08.6]} 39... h2 {[%clk 0:00:45.6]} 40. Kxh2
{[%clk 0:00:09.1]} 40... Rxf3 {[%clk 0:00:45.4]} 41. Rc6 {[%clk 0:00:08.7]}
41... Rc3 {[%clk 0:00:41.3]} 42. d6 {[%clk 0:00:08.2]} 42... Rd3 {[%clk
0:00:38.7]} 43. c5 {[%clk 0:00:07.1]} 43... Rd5 {[%clk 0:00:35.3]} 44. Rc8
{[%clk 0:00:05.5]} 44... e5 {[%clk 0:00:32.9]} 45. Rc7 {[%clk 0:00:05.2]} 45...
Ke6 {[%clk 0:00:31.7]} 46. Re7+ {[%clk 0:00:05.3]} 46... Kf6 {[%clk 0:00:32.1]}
47. Rc7 {[%clk 0:00:04.4]} 47... Ke6 {[%clk 0:00:31.6]} 48. Kg2 {[%clk
0:00:04.3]} 48... f6 {[%clk 0:00:30.2]} 49. Kf3 {[%clk 0:00:04.4]} 49... f5
{[%clk 0:00:29.3]} 50. gxf5+ {[%clk 0:00:02.3]} 50... Kxf5 {[%clk 0:00:29]} 51.
d7 {[%clk 0:00:02.6]} 51... Ke6 {[%clk 0:00:28.4]} 52. c6 {[%clk 0:00:03]} 52...
Ke7 {[%clk 0:00:26.6]} 53. Rc8 {[%clk 0:00:03]} 53... Rd3+ {[%clk 0:00:26.5]}
54. Ke4 {[%clk 0:00:03]} 54... Rd1 {[%clk 0:00:24.5]} 55. Re8+ {[%clk
0:00:03.5]} 55... Kf7 {[%clk 0:00:23.2]} 56. d8=Q {[%clk 0:00:04.4]} 56... Rxd8
{[%clk 0:00:22.5]} 57. Rxd8 {[%clk 0:00:05.3]} 57... Ke7 {[%clk 0:00:23]} 58.
Ra8 {[%clk 0:00:05.8]} 58... Kd6 {[%clk 0:00:22.6]} 59. Rxa6 {[%clk 0:00:06.7]}
59... Kc7 {[%clk 0:00:23.1]} 60. Rb6 {[%clk 0:00:07.1]} 60... h5 {[%clk
0:00:23.7]} 61. Kxe5 {[%clk 0:00:07.8]} 61... h4 {[%clk 0:00:23.5]} 62. Kf4
{[%clk 0:00:08.7]} 62... h3 {[%clk 0:00:24.1]} 63. Kg3 {[%clk 0:00:09.6]} 63...
h2 {[%clk 0:00:24.9]} 64. Kxh2 {[%clk 0:00:10.2]} 64... Kc8 {[%clk 0:00:24.4]}
65. Kg3 {[%clk 0:00:11.1]} 65... Kc7 {[%clk 0:00:24.4]} 66. Kf3 {[%clk 0:00:12]}
66... Kc8 {[%clk 0:00:25.3]} 67. Ke4 {[%clk 0:00:12.9]} 67... Kc7 {[%clk
0:00:25.8]} 68. Kd5 {[%clk 0:00:13.8]} 68... Kd8 {[%clk 0:00:25.9]} 69. Ke6
{[%clk 0:00:13.8]} 69... Kc7 {[%clk 0:00:26.6]} 70. Ke7 {[%clk 0:00:13]} 70...
Kc8 {[%clk 0:00:26.7]} 71. Kd6 {[%clk 0:00:13.6]} 71... Kd8 {[%clk 0:00:23.2]}
72. Rb8# {[%clk 0:00:14.1]} 1-0

[Event "*** SCC Grand Prix: Titled Tuesday Blitz"]
[Site "Chess.com"]
[Date "2020.10.13"]
[Round "2"]
[White "Das_Virus_2020"]
[Black "GoltsevDmitry2000"]
[Result "0-1"]
[WhiteElo "2401"]
[BlackElo "2683"]
[TimeControl "180+1"]
[EndTime "10:18:24 PDT"]
[Termination "GoltsevDmitry2000 won by resignation"]

1. e4 {[%clk 0:03:00.9]} 1... c5 {[%clk 0:02:58.6]} 2. c3 {[%clk 0:03:00.3]}
2... e6 {[%clk 0:02:58.6]} 3. d4 {[%clk 0:02:59.5]} 3... cxd4 {[%clk 0:02:59.5]}
4. cxd4 {[%clk 0:02:58.8]} 4... d5 {[%clk 0:03:00.4]} 5. e5 {[%clk 0:02:56.2]}
5... Nc6 {[%clk 0:02:56.3]} 6. Nf3 {[%clk 0:02:56.1]} 6... Nge7 {[%clk
0:02:55.6]} 7. Bd3 {[%clk 0:02:45.3]} 7... Nf5 {[%clk 0:02:53.2]} 8. Bxf5 {[%clk
0:02:43.5]} 8... exf5 {[%clk 0:02:54.1]} 9. O-O {[%clk 0:02:43.1]} 9... Be7
{[%clk 0:02:53]} 10. Nc3 {[%clk 0:02:42.5]} 10... Be6 {[%clk 0:02:51.6]} 11. Ne2
{[%clk 0:02:29.1]} 11... h6 {[%clk 0:02:45.7]} 12. a3 {[%clk 0:02:22.9]} 12...
a6 {[%clk 0:02:45]} 13. b4 {[%clk 0:02:19.7]} 13... Rc8 {[%clk 0:02:44]} 14. Nf4
{[%clk 0:02:06.3]} 14... g5 {[%clk 0:02:41.1]} 15. Nh5 {[%clk 0:02:01.6]} 15...
Rg8 {[%clk 0:02:39.2]} 16. Qd3 {[%clk 0:01:57.2]} 16... Nb8 {[%clk 0:02:33.6]}
17. Re1 {[%clk 0:01:47.2]} 17... Nd7 {[%clk 0:02:33.2]} 18. Nf6+ {[%clk
0:01:32.8]} 18... Nxf6 {[%clk 0:02:12.9]} 19. exf6 {[%clk 0:01:32.5]} 19... Bxf6
{[%clk 0:02:13.8]} 20. Qxf5 {[%clk 0:01:29.4]} 20... Kf8 {[%clk 0:02:12.8]} 21.
Qd3 {[%clk 0:01:27.3]} 21... Rc4 {[%clk 0:02:08.9]} 22. Ne5 {[%clk 0:01:26.5]}
22... Rc7 {[%clk 0:02:06.8]} 23. f4 {[%clk 0:01:24.1]} 23... Qc8 {[%clk
0:01:53]} 24. fxg5 {[%clk 0:01:19.7]} 24... Bxg5 {[%clk 0:01:53.9]} 25. Bxg5
{[%clk 0:01:18.6]} 25... Rxg5 {[%clk 0:01:54.8]} 26. Rf1 {[%clk 0:01:11.9]}
26... Rc2 {[%clk 0:01:29.1]} 27. g3 {[%clk 0:01:04.2]} 27... Kg8 {[%clk
0:01:01]} 28. Qf3 {[%clk 0:00:59.5]} 28... Qc7 {[%clk 0:00:41]} 29. Rae1 {[%clk
0:00:49.9]} 29... Rc3 {[%clk 0:00:32.7]} 30. Qf6 {[%clk 0:00:48.3]} 30... Rg7
{[%clk 0:00:11.9]} 31. Qxh6 {[%clk 0:00:39.6]} 31... Rxa3 {[%clk 0:00:11.6]} 32.
Rf4 {[%clk 0:00:27.3]} 32... Qc3 {[%clk 0:00:09.9]} 33. Ref1 {[%clk 0:00:20.1]}
33... Qe3+ {[%clk 0:00:09.9]} 34. Kh1 {[%clk 0:00:20.4]} 34... Ra2 {[%clk
0:00:09.2]} 35. Rh4 {[%clk 0:00:13.4]} 35... Qxh6 {[%clk 0:00:09.6]} 36. Rxh6
{[%clk 0:00:14.3]} 36... Rb2 {[%clk 0:00:07.2]} 37. Rhf6 {[%clk 0:00:10.7]}
37... Rxb4 {[%clk 0:00:07.1]} 38. R6f4 {[%clk 0:00:11.3]} 38... Rh7 {[%clk
0:00:06.6]} 39. h4 {[%clk 0:00:10.6]} 39... Rb3 {[%clk 0:00:06.5]} 40. Kh2
{[%clk 0:00:10.4]} 40... Rg7 {[%clk 0:00:07]} 41. Rg1 {[%clk 0:00:10.4]} 41...
a5 {[%clk 0:00:06.9]} 42. Nf3 {[%clk 0:00:09.7]} 42... a4 {[%clk 0:00:06.8]} 43.
Ng5 {[%clk 0:00:09.6]} 43... b5 {[%clk 0:00:07.3]} 44. Nxe6 {[%clk 0:00:09.7]}
44... fxe6 {[%clk 0:00:08.2]} 45. h5 {[%clk 0:00:10.2]} 45... a3 {[%clk
0:00:08.5]} 46. h6 {[%clk 0:00:10.4]} 46... Rg6 {[%clk 0:00:08.9]} 47. Rh4
{[%clk 0:00:10.3]} 47... Kh7 {[%clk 0:00:09.2]} 48. Rf1 {[%clk 0:00:09.8]} 48...
Rxh6 {[%clk 0:00:09.4]} 49. Rf7+ {[%clk 0:00:09.5]} 49... Kg6 {[%clk 0:00:09.8]}
50. Rxh6+ {[%clk 0:00:08.6]} 50... Kxh6 {[%clk 0:00:10.7]} 51. Rf6+ {[%clk
0:00:09.5]} 51... Kg5 {[%clk 0:00:11.6]} 52. Rxe6 {[%clk 0:00:10.4]} 52... a2
{[%clk 0:00:12.5]} 53. Ra6 {[%clk 0:00:10.7]} 53... Rb2+ {[%clk 0:00:12.3]} 54.
Kh3 {[%clk 0:00:11.2]} 54... b4 {[%clk 0:00:13.2]} 55. Ra5 {[%clk 0:00:10.7]}
55... b3 {[%clk 0:00:13.5]} 56. Rxd5+ {[%clk 0:00:11.3]} 56... Kf6 {[%clk
0:00:14.2]} 57. Ra5 {[%clk 0:00:12.1]} 57... Rb1 {[%clk 0:00:13.9]} 58. d5
{[%clk 0:00:12.5]} 58... a1=Q {[%clk 0:00:14.1]} 0-1